bitfinex/quotes_ETHUSD_20241129
["timestamp","ask_amount","ask_price","bid_price","bid_amount"]
[1732888157881,0.08674441,3606.1,3605.7,2.77332]
[1732888158084,0.08674441,3606.2,3605.6,2.77346]
[1732888158292,0.08674441,3606.1,3605.8,2.77326]
[1732888158506,2.77286,3606.4,3605.8,2.77326]
[1732888158801,0.08674067,3606.3,3605.8,2.77326]
[1732888159007,0.08674067,3606.2,3605.8,2.77326]
[1732888159170,0.08674067,3606.3,3605.8,2.77326]
[1732888159376,0.08674067,3606.2,3605.8,2.77326]
[1732888159613,0.08674067,3606.3,3605.8,2.77326]
[1732888159788,0.08674067,3606.2,3605.8,2.77326]
[1732888159989,0.08674067,3606.3,3605.8,2.77326]
[1732888160178,0.08674067,3606.2,3605.8,2.77326]
[1732888160379,0.08674067,3606.3,3605.8,2.77326]
[1732888160690,0.08674067,3606.2,3605.9,2.77323]
[1732888161010,0.08674067,3606.4,3605.9,2.77323]
[1732888161217,0.08674067,3606.4,3605.7,5.54668]
[1732888161218,0.08674067,3606.3,3605.7,5.54668]
[1732888161515,0.08674067,3606.2,3605.9,2.77316]
[1732888161712,0.08674067,3606.4,3605.9,2.77316]
[1732888161890,0.08674067,3606.3,3606.2,2.77299]
[1732888162103,0.08674067,3606.5,3606.2,2.77299]
[1732888162291,0.08674067,3606.4,3606.2,2.77299]
[1732888162679,0.08674067,3606.5,3606.2,2.77299]
[1732888162809,0.08674067,3606.4,3606.2,2.77299]
[1732888163013,0.08674067,3606.5,3606.2,2.77299]
[1732888163202,0.08674067,3606.4,3606.2,2.77299]
[1732888163405,0.08674067,3606.5,3606.2,2.77299]
[1732888163604,0.08674067,3606.4,3606.2,2.77299]
[1732888163797,2.85953067,3606.5,3606.1,0.98]
[1732888164011,0.08674067,3606.4,3606.1,3.75305]
[1732888164205,0.08674067,3606.5,3606.1,3.75305]
[1732888164432,0.08674067,3606.4,3606.1,3.75305]
[1732888164739,0.08674067,3606.5,3606.1,3.75305]
[1732888164899,0.08674067,3606.4,3606.1,3.75305]
[1732888165099,0.08674067,3606.5,3606.1,3.75305]
[1732888165401,0.08674067,3606.4,3606.1,3.75305]
[1732888165595,0.08674067,3606.5,3606.1,3.75305]
[1732888165802,0.08674067,3606.4,3606.1,3.75305]
[1732888166133,3.03361028,3606.6,3606.1,3.75305]
[1732888166134,0.08674067,3606.5,3606.1,3.75305]
[1732888166339,0.08674067,3606.4,3606.1,3.75305]
[1732888166538,0.08674067,3606.5,3606.1,3.75305]
[1732888166698,0.08674067,3606.4,3606.1,3.75305]
[1732888166895,0.08674067,3606.5,3606.1,3.75305]
[1732888167246,0.08674067,3606.4,3606.1,3.75305]
[1732888167567,0.08674067,3606.5,3606.1,3.75305]
[1732888167697,0.08674067,3606.4,3606.1,3.75305]
[1732888167897,0.08674067,3606.5,3606.1,3.75305]
[1732888168118,0.08674067,3606.4,3606.1,3.75305]
[1732888168323,0.08674067,3606.5,3606.1,3.75305]
[1732888168541,3.03361028,3606.6,3606.1,3.75305]
[1732888168719,0.08673466,3606.5,3606.1,3.75305]
[1732888168920,3.03361028,3606.6,3605.3,0.921]
[1732888169121,3.03361028,3606.2,3605.3,0.921]
[1732888169336,2.77319,3606.0,3605.4,2.77357]
[1732888169700,2.77329,3605.9,3605.3,2.77368]
[1732888169941,0.08674828,3605.8,3605.3,2.77368]
[1732888170622,2.77316,3606.0,3605.5,2.77348]
[1732888170826,0.08674815,3605.9,3605.5,2.77348]
[1732888171026,2.77308,3606.1,3605.5,2.77348]
[1732888171200,2.77308,3606.1,3605.3,5.54728]
[1732888171201,2.85992802,3606.0,3605.3,5.54728]
[1732888171401,0.08674802,3605.9,3605.3,5.54728]
[1732888171642,0.08674802,3605.8,3605.3,5.54728]
[1732888171843,0.08674802,3605.9,3605.4,2.77361]
[1732888172140,0.08674802,3605.8,3605.4,2.77361]
[1732888172343,0.08674779,3605.9,3605.5,2.77351]
[1732888172636,2.77315,3606.0,3605.5,2.77351]
[1732888172843,0.08674695,3605.9,3605.3,2.77362]
[1732888173041,2.77315,3606.0,3605.3,2.77362]
[1732888173344,0.08674788,3605.9,3605.4,2.77361]
[1732888173643,0.08674788,3605.8,3605.4,2.77361]
[1732888173840,2.77315,3606.0,3605.4,2.77361]
[1732888174144,0.08674852,3605.9,3605.4,2.77361]
[1732888174504,0.08674852,3605.8,3605.4,2.77361]
[1732888174853,0.08674852,3605.7,3605.4,2.77361]
[1732888175052,2.85997852,3605.9,3605.4,2.77361]
[1732888175202,0.08674852,3605.8,3605.4,2.77361]
[1732888175403,0.08674852,3605.7,3605.4,2.77361]
[1732888175644,0.9462,3605.7,3605.1,0.9447]
[1732888175848,2.86028238,3605.6,3604.9,2.77395]
[1732888176142,2.86033238,3605.5,3604.9,2.77395]
[1732888176328,2.77358,3605.5,3604.9,2.77395]
[1732888176529,2.77346,3605.6,3605.1,2.77384]
[1732888176727,0.08675605,3605.5,3605.1,2.77384]
[1732888177043,2.86021605,3605.6,3605.0,2.7739]
[1732888177258,0.08675605,3605.5,3605.0,2.7739]
[1732888178538,2.77361,3605.4,3604.8,3.75821]
[1732888178727,2.7737,3605.3,3604.8,3.75821]
[1732888179047,2.7737,3605.3,3604.7,0.55857825]
[1732888179231,2.7737,3605.3,3604.7,3.33271825]
[1732888179624,2.77379,3605.2,3604.7,3.33271825]
[1732888179822,5.80722028,3605.4,3604.7,0.55857825]
[1732888180149,0.9865,3605.2,3604.7,0.55857825]
[1732888180526,0.9865,3605.2,3604.8,2.77407]
[1732888180935,0.9728,3605.6,3605.1,2.77379]
[1732888181146,2.77326,3605.9,3605.3,1.0012]
[1732888181324,3.74651,3605.3,3604.7,3.77529]
[1732888182050,0.9728,3605.3,3604.4,0.9472]
[1732888182257,2.77392,3605.0,3604.4,0.9472]
[1732888182552,2.77393,3605.0,3604.5,2.7743]
[1732888182925,2.77382,3605.2,3604.5,2.7743]
[1732888183249,0.08677029,3605.1,3604.5,3.20075824]
[1732888183458,0.08677029,3605.2,3604.7,2.77411]
[1732888184959,2.77392,3605.0,3604.5,0.42650824]
[1732888185115,2.77392,3605.0,3604.4,0.9472]
[1732888185321,2.77379,3605.2,3604.4,2.77434]
[1732888185647,0.08677036,3605.1,3604.4,2.77434]
[1732888186160,2.77394,3605.0,3604.3,2.77438]
[1732888186344,2.77394,3605.0,3604.2,3.31808236]
[1732888186345,2.77394,3605.0,3604.4,2.77437]
[1732888187221,2.77394,3605.0,3604.2,3.31808236]
[1732888187222,2.77412,3604.8,3604.2,3.31808236]
[1732888187460,2.77412,3604.8,3604.3,2.77445]
[1732888187461,0.9111,3604.8,3604.3,2.77445]
[1732888187637,0.9111,3604.8,3604.4,2.77436]
[1732888188658,3.68564,3605.0,3604.4,2.77436]
[1732888189068,0.9117,3605.0,3604.5,2.7743]
[1732888189564,2.77374,3605.3,3604.7,2.77415]
[1732888189867,2.77374,3605.3,3604.7,0.9251]
[1732888190224,2.77374,3605.3,3604.6,2.77418]
[1732888190225,2.7738,3605.2,3604.6,2.77418]
[1732888192245,6.74434028,3605.4,3604.6,2.77418]
[1732888192428,6.74434028,3605.4,3604.8,2.77407]
[1732888192628,2.86045455,3605.3,3604.8,2.77407]
[1732888192841,2.77369,3605.3,3604.8,2.77407]
[1732888193387,2.77348,3605.6,3604.8,3.16753908]
[1732888193555,2.77348,3605.6,3605.0,2.77388]
[1732888194052,3.03361028,3605.4,3604.6,2.77422]
[1732888194253,2.77389,3605.1,3604.4,2.77437]
[1732888194588,0.9679,3604.7,3604.1,0.9368]
[1732888194784,0.9679,3604.7,3604.1,1.607944]
[1732888194941,0.9679,3604.7,3604.1,4.382514]
[1732888195363,0.9679,3604.7,3604.1,1.607944]
[1732888195586,0.9679,3604.7,3604.2,2.77451]
[1732888195780,3.74207,3604.7,3604.2,2.77451]
[1732888195943,3.74207,3604.7,3604.1,4.382534]
[1732888196574,3.74207,3604.7,3604.1,4.382494]
[1732888197160,2.77423,3604.6,3604.1,3.71135]
[1732888197388,2.77423,3604.6,3604.1,2.77455]
[1732888197588,2.77432,3604.5,3604.0,2.77469]
[1732888197792,0.9679,3604.7,3604.1,2.77461]
[1732888197793,3.74211,3604.7,3604.1,2.77461]
[1732888198085,2.77411,3604.8,3604.0,2.77469]
[1732888198291,2.7742,3604.7,3604.1,2.7746]
[1732888199156,2.77426,3604.6,3604.0,2.77469]
[1732888200461,2.77424,3604.6,3604.0,2.77468]
[1732888200653,0.9772,3604.4,3603.9,2.77477]
[1732888201260,0.9772,3604.4,3604.0,2.77469]
[1732888201475,0.9772,3604.4,3603.9,0.71123061]
[1732888202278,0.9772,3604.4,3603.9,3.48599061]
[1732888202471,0.9772,3604.4,3604.0,2.77468]
[1732888202695,3.03361028,3604.6,3603.9,3.48599061]
[1732888202854,6.77105028,3604.6,3604.1,2.7746]
[1732888203048,3.99681028,3604.6,3603.9,0.71123061]
[1732888203396,0.08678143,3604.5,3604.0,2.77464]
[1732888203555,0.08678143,3604.5,3604.1,2.7746]
[1732888204182,0.08678143,3604.5,3603.7,1.0007]
[1732888204381,0.08678143,3604.5,3604.2,2.77447]
[1732888204586,2.86094143,3604.7,3604.2,0.99]
[1732888204902,0.08678143,3604.6,3604.2,0.99]
[1732888205594,0.08678143,3604.6,3604.0,3.71764]
[1732888205798,2.86102143,3604.6,3604.0,3.71764]
[1732888206102,0.08678143,3604.5,3604.1,2.77461]
[1732888206256,0.08678143,3604.6,3604.1,2.77461]
[1732888207408,0.08678143,3604.5,3604.1,2.77461]
[1732888207702,0.08678175,3604.6,3604.1,2.77461]
[1732888208109,2.86102175,3604.6,3604.1,2.77461]
[1732888208311,2.86109175,3604.5,3603.9,2.77475]
[1732888208516,2.77438,3604.4,3603.9,2.77475]
[1732888208700,3.73228,3604.4,3603.9,2.77475]
[1732888208900,3.73228,3604.4,3603.7,3.7317]
[1732888209101,3.73228,3604.4,3603.8,2.77483]
[1732888209629,0.9579,3604.4,3603.9,2.77471]
[1732888209945,0.9579,3604.4,3604.1,2.77457]
[1732888210101,0.08678475,3604.4,3604.1,2.77457]
[1732888210444,0.08678475,3604.5,3603.9,2.77472]
[1732888210645,0.08678475,3604.5,3603.7,1.32997]
[1732888210646,2.77473,3604.0,3602.9,0.9107]
[1732888210849,3.03361028,3603.8,3603.3,2.77522]
[1732888211530,3.03361028,3603.8,3603.1,2.77537]
[1732888211531,0.9401,3603.6,3603.1,2.77537]
[1732888211855,0.9401,3603.6,3602.9,2.77553]
[1732888211856,3.03361028,3603.4,3602.9,2.77553]
[1732888212956,3.03361028,3603.4,3603.1,2.77536]
[1732888215465,3.03361028,3603.4,3603.2,2.7753]
[1732888216523,3.03361028,3603.4,3603.1,2.77536]
[1732888216725,8.61074489,3609.0,3603.7,2.7749]
[1732888216726,0.9115,3603.9,3603.7,2.7749]
[1732888216959,4.03190971,3604.1,3603.7,2.7749]
[1732888217262,3.94511028,3604.1,3603.7,2.7749]
[1732888217565,3.94511028,3604.1,3603.8,2.77482]
[1732888218235,3.03361028,3604.1,3604.0,2.77469]
[1732888219080,0.9552,3604.4,3604.0,2.77469]
[1732888219233,3.98881028,3604.4,3604.1,2.77455]
[1732888219567,3.98881028,3604.4,3604.3,2.77446]
[1732888219766,3.12039351,3604.4,3604.1,2.77455]
[1732888219971,3.03361028,3604.4,3604.1,2.77455]
[1732888220178,0.08678518,3604.3,3604.1,2.77455]
[1732888220756,0.08678518,3604.3,3604.2,2.77454]
[1732888220953,3.03361028,3604.4,3604.3,2.77446]
[1732888221349,3.03361028,3604.4,3604.1,3.329481]
[1732888221350,3.03361028,3604.8,3604.5,2.77426]
[1732888221553,3.03361028,3604.8,3604.6,2.77423]
[1732888221554,0.08677681,3604.7,3604.6,2.77423]
[1732888222239,3.03361028,3604.8,3604.7,2.77415]
[1732888222543,3.1203813,3604.8,3604.7,2.77415]
[1732888223594,0.08677102,3604.8,3604.7,2.77415]
[1732888223908,0.08677102,3605.1,3604.8,2.77403]
[1732888224108,0.08677102,3605.0,3604.9,2.77399]
[1732888224404,0.08677102,3605.1,3604.9,2.77399]
[1732888224609,0.08677102,3605.0,3604.7,2.77415]
[1732888224815,0.08677102,3605.0,3604.6,2.77422]
[1732888224969,0.08677102,3605.1,3604.7,2.77413]
[1732888225292,0.08677102,3605.0,3604.7,2.77413]
[1732888225471,0.08677102,3605.1,3604.7,2.77413]
[1732888225670,0.08677102,3605.0,3604.7,2.77413]
[1732888225870,0.08677102,3605.1,3604.7,2.77413]
[1732888226070,0.08677102,3605.0,3604.7,2.77413]
[1732888226308,0.08677102,3605.1,3604.9,2.774]
[1732888226691,0.08677102,3605.1,3605.0,2.77392]
[1732888226910,0.0867622,3605.5,3605.2,2.77377]
[1732888227094,0.0867622,3605.5,3605.3,2.77364]
[1732888227411,0.933,3605.7,3605.2,2.77371]
[1732888227579,0.933,3605.7,3604.9,2.77396]
[1732888227785,2.77354,3605.5,3604.9,2.77396]
[1732888227992,0.08675026,3605.4,3605.0,2.77391]
[1732888228175,0.08675026,3605.6,3605.0,2.77391]
[1732888228378,0.08675806,3605.6,3605.0,2.77391]
[1732888229002,2.77374,3605.3,3604.6,2.77423]
[1732888229187,2.77366,3605.4,3604.6,2.77423]
[1732888229627,0.08676344,3605.3,3604.7,2.77414]
[1732888229789,2.86045344,3605.3,3604.7,2.77414]
[1732888229973,2.77369,3605.3,3604.7,2.77414]
[1732888230174,2.77369,3605.3,3604.4,3.76586]
[1732888230175,2.86053489,3605.2,3604.4,3.76586]
[1732888230428,0.08676489,3605.1,3604.6,2.77421]
[1732888230735,0.9164,3605.0,3604.4,3.76586]
[1732888231333,0.9164,3605.0,3604.6,2.77422]
[1732888231501,0.08676869,3605.1,3604.7,2.77408]
[1732888231705,1.00706869,3605.3,3604.9,2.774]
[1732888231936,0.08676869,3605.4,3605.0,0.9109]
[1732888232226,0.08676869,3605.5,3605.0,3.68481]
[1732888232533,2.86036869,3605.5,3605.0,0.9109]
[1732888232831,0.08676869,3605.4,3605.0,0.9109]
[1732888233044,0.08676869,3605.4,3604.8,2.77405]
[1732888233200,2.77363,3605.4,3604.8,2.77405]
[1732888233398,2.77363,3605.4,3604.7,0.9741]
[1732888233399,2.77374,3605.3,3604.7,0.9741]
[1732888233605,3.03361028,3605.6,3604.5,0.9741]
[1732888233606,3.71689,3605.2,3604.5,0.9741]
[1732888233898,3.71689,3605.2,3604.2,3.74858]
[1732888233899,2.77409,3604.8,3604.2,3.74858]
[1732888234099,2.77399,3605.0,3604.3,0.4303511]
[1732888234323,2.77413,3604.8,3604.1,2.77461]
[1732888234497,0.9842,3604.7,3604.1,2.77461]
[1732888234697,3.75835,3604.7,3604.1,2.77461]
[1732888236238,2.77438,3604.4,3603.6,0.9689]
[1732888236404,2.77458,3604.2,3603.6,0.9689]
[1732888236740,2.77484,3603.9,3603.3,2.77522]
[1732888236915,0.9887,3603.9,3603.1,0.9953]
[1732888237110,2.77497,3603.7,3603.1,3.77063]
[1732888237842,2.77485,3603.8,3603.2,2.7753]
[1732888238560,0.9887,3603.9,3603.1,0.9953]
[1732888238721,2.77493,3603.7,3603.1,0.9953]
[1732888239656,3.76347,3603.9,3603.2,2.77524]
[1732888239826,3.76347,3603.9,3603.1,0.9953]
[1732888240026,2.77497,3603.7,3603.1,3.77063]
[1732888240326,2.77497,3603.7,3603.1,4.48111712]
[1732888241243,3.76347,3603.9,3603.1,1.70578712]
[1732888241462,0.9887,3603.9,3603.3,2.77518]
[1732888241657,0.9887,3603.9,3603.4,2.77514]
[1732888242338,0.08679558,3604.1,3603.5,0.8997]
[1732888242552,2.77467,3604.1,3603.5,0.8997]
[1732888242923,2.77454,3604.2,3603.6,2.77499]
[1732888243125,0.08679425,3604.1,3603.5,0.8997]
[1732888243324,2.77477,3604.0,3603.4,2.77513]
[1732888243721,2.77478,3603.9,3603.3,3.67882]
[1732888243966,2.77478,3603.9,3603.3,0.9036]
[1732888244133,2.77478,3603.9,3603.4,2.77515]
[1732888244845,0.9307,3603.7,3603.2,2.77525]
[1732888245163,3.70567,3603.7,3603.1,2.77538]
[1732888245374,3.70567,3603.7,3603.1,3.419265]
[1732888245580,0.9307,3603.7,3603.2,2.77528]
[1732888245881,0.9307,3603.7,3603.3,2.77521]
[1732888246686,0.9307,3603.7,3603.1,0.643885]
[1732888246879,0.9307,3603.7,3603.2,2.77524]
[1732888247056,0.9307,3603.7,3603.3,0.6194555]
[1732888247948,0.9307,3603.7,3603.1,2.77538]
[1732888249486,0.9307,3603.7,3603.3,2.77521]
[1732888249778,0.9307,3603.7,3603.1,2.77538]
[1732888249779,0.9307,3603.7,3603.2,2.77529]
[1732888249942,3.70567,3603.7,3603.1,2.77538]
[1732888250557,0.9307,3603.7,3603.2,2.77526]
[1732888250780,0.9307,3603.7,3603.3,2.77522]
[1732888251137,2.77472,3604.0,3603.5,2.775]
[1732888251138,0.9473,3604.0,3603.5,2.775]
[1732888251449,0.9473,3604.0,3603.2,0.643864]
[1732888251450,0.08680085,3604.3,3603.9,2.77472]
[1732888251651,1.03410085,3604.5,3603.9,2.77472]
[1732888251855,0.9473,3604.5,3603.9,3.419132]
[1732888252058,1.03410085,3604.5,3604.0,2.77468]
[1732888252338,3.80839242,3604.5,3604.0,2.77468]
[1732888252580,1.03408242,3604.5,3604.1,2.77461]
[1732888252762,0.9473,3604.5,3604.1,2.77461]
[1732888253779,2.77411,3604.8,3604.3,2.77445]
[1732888253780,3.72521,3604.8,3604.3,2.77445]
[1732888254087,0.08678182,3604.7,3604.4,2.77437]
[1732888254384,0.9511,3604.8,3604.4,2.77437]
[1732888254584,0.08678182,3604.9,3604.5,2.77424]
[1732888254790,0.9352,3605.0,3604.5,2.77423]
[1732888255082,1.02198182,3605.0,3604.5,2.77423]
[1732888256188,1.02198182,3605.0,3604.6,2.7742]
[1732888256546,0.08678182,3605.0,3604.6,2.7742]
[1732888256745,0.98488182,3605.2,3604.8,2.77407]
[1732888257058,0.08678182,3605.2,3604.8,3.68907]
[1732888257386,0.08678182,3605.3,3604.8,3.68907]
[1732888257589,0.08676632,3605.3,3604.8,0.915]
[1732888257886,0.8981,3605.5,3604.9,2.77399]
[1732888258182,3.75841157,3605.5,3605.0,2.77391]
[1732888258354,0.98486157,3605.5,3605.0,2.77391]
[1732888258947,0.8981,3605.5,3605.0,2.77391]
[1732888259175,0.8981,3605.5,3605.1,2.77384]
[1732888259388,2.77347,3605.6,3605.1,2.77384]
[1732888259744,2.77347,3605.6,3604.8,3.8456468]
[1732888259987,0.08675753,3605.5,3605.0,2.77391]
[1732888260292,3.70413,3605.8,3605.2,2.77375]
[1732888260445,0.08675888,3605.5,3604.9,0.38456468]
[1732888260761,2.77346,3605.6,3604.9,3.15850468]
[1732888260957,0.08675888,3605.5,3605.0,2.7739]
[1732888261146,0.08675888,3605.5,3605.1,2.77384]
[1732888261349,2.77339,3605.7,3605.1,2.77384]
[1732888261578,2.86014626,3605.7,3605.1,2.77384]
[1732888261744,0.08675626,3605.6,3605.1,2.77384]
[1732888262087,2.77354,3605.5,3605.0,0.70040415]
[1732888262274,0.08675626,3605.4,3605.0,0.70040415]
[1732888262470,2.77354,3605.5,3605.0,0.70040415]
[1732888262672,2.77354,3605.5,3604.3,2.7744]
[1732888262673,0.9222,3605.3,3604.5,2.77428]
[1732888262882,3.95581028,3605.3,3604.2,0.8968]
[1732888263074,0.08675883,3605.2,3604.6,2.77417]
[1732888263887,2.86052883,3605.2,3604.6,2.77417]
[1732888264084,0.08675883,3605.1,3604.6,2.77417]
[1732888264286,0.08675883,3605.1,3604.2,1.44580718]
[1732888264287,2.77398,3605.0,3604.5,2.77429]
[1732888264598,0.9222,3605.3,3604.5,0.42200972]
[1732888264599,2.774,3604.9,3604.5,0.42200972]
[1732888264752,0.8743,3604.8,3604.3,2.77444]
[1732888265307,0.8743,3604.8,3604.1,2.77458]
[1732888265593,2.7742,3604.7,3604.1,2.77458]
[1732888265758,0.08677384,3604.6,3604.1,2.77458]
[1732888265967,0.08677384,3604.6,3604.1,3.4738602]
[1732888266649,2.7742,3604.7,3604.1,3.4738602]
[1732888267453,0.08677968,3604.6,3604.1,3.4738602]
[1732888267855,2.86105968,3604.6,3604.1,0.6992802]
[1732888268064,3.6484,3604.8,3603.9,3.66455]
[1732888268287,2.77423,3604.6,3603.9,3.66455]
[1732888268491,3.6484,3604.8,3604.1,2.7746]
[1732888268677,2.86093995,3604.7,3604.1,2.7746]
[1732888268964,0.08677995,3604.6,3604.1,3.32376899]
[1732888269161,0.08677995,3604.6,3604.2,2.77454]
[1732888269365,0.08677995,3604.9,3604.5,0.8812]
[1732888269584,0.08677995,3605.1,3604.6,2.77423]
[1732888270054,0.08677995,3605.1,3604.7,2.77413]
[1732888270261,0.08677995,3605.2,3604.8,2.77407]
[1732888270457,2.86043995,3605.4,3604.8,2.77407]
[1732888270663,2.86042488,3605.4,3604.8,2.77407]
[1732888271002,0.08676488,3605.3,3604.8,2.77407]
[1732888271297,2.86047488,3605.3,3604.8,3.45234269]
[1732888271601,0.8886,3605.5,3604.9,2.774]
[1732888271602,0.08676488,3605.2,3604.9,2.774]
[1732888271766,3.74891488,3605.5,3604.8,0.60033395]
[1732888271967,0.08676488,3605.4,3604.9,2.77399]
[1732888272759,0.08676488,3605.4,3605.0,2.77392]
[1732888272961,0.08676488,3605.4,3605.1,2.77382]
[1732888273204,0.8886,3605.5,3605.1,2.77382]
[1732888273402,3.74891488,3605.5,3604.9,2.77395]
[1732888273610,0.08676488,3605.4,3604.9,2.77395]
[1732888274303,0.08676488,3605.4,3604.7,2.77414]
[1732888274304,2.77378,3605.2,3604.7,2.77414]
[1732888274485,2.77378,3605.2,3604.6,6.12750695]
[1732888274672,2.77378,3605.2,3604.7,2.77414]
[1732888275768,2.77377,3605.2,3604.7,2.77414]
[1732888275971,2.77361,3605.4,3604.6,3.0]
[1732888276294,3.03361028,3605.1,3604.2,2.77448]
[1732888276474,0.9173,3604.7,3604.2,3.82865028]
[1732888276796,3.69147,3604.7,3604.2,1.05417028]
[1732888277298,2.77437,3604.5,3603.9,2.77471]
[1732888277666,2.77437,3604.5,3604.0,2.77468]
[1732888277965,2.77423,3604.6,3604.1,2.77459]
[1732888278161,2.77423,3604.6,3604.0,2.77468]
[1732888278606,2.77437,3604.5,3603.9,2.77476]
[1732888278788,2.77423,3604.6,3604.0,2.77468]
[1732888279265,0.0867822,3604.5,3604.0,2.77468]
[1732888279902,0.0867822,3604.6,3604.1,2.7746]
[1732888280200,0.0867822,3604.6,3604.2,2.77453]
[1732888280391,0.0867822,3604.5,3604.2,2.77453]
[1732888280561,2.8610222,3604.6,3604.0,2.77468]
[1732888280759,0.0867822,3604.5,3604.1,2.77461]
[1732888281003,0.0867822,3604.5,3604.2,2.77452]
[1732888281170,3.95091028,3604.7,3604.4,2.77438]
[1732888281500,0.0867821,3604.6,3604.2,2.77447]
[1732888281706,0.0867821,3604.5,3604.2,2.77447]
[1732888282002,3.71697,3605.0,3604.4,2.77433]
[1732888282303,0.08677866,3604.9,3604.4,2.77433]
[1732888282505,0.08677866,3604.8,3604.4,2.77433]
[1732888282670,0.08677866,3604.7,3604.4,2.77433]
[1732888282866,0.08677866,3604.6,3604.5,2.7743]
[1732888283064,0.08677866,3604.6,3604.4,2.77433]
[1732888283267,0.08677866,3604.5,3604.4,2.77433]
[1732888283578,2.86078866,3604.9,3604.4,2.77433]
[1732888283778,0.08677866,3604.8,3604.4,2.77433]
[1732888284080,0.08677866,3604.7,3604.4,2.77433]
[1732888284279,0.08677866,3604.6,3604.4,2.77433]
[1732888284483,0.08677866,3604.5,3604.4,2.77433]
[1732888285066,2.774,3604.9,3604.3,2.77444]
[1732888285271,0.08677866,3604.8,3604.3,2.77444]
[1732888285501,0.08677866,3604.7,3604.3,2.77444]
[1732888285785,2.774,3604.9,3604.3,2.77444]
[1732888285983,0.08677286,3604.8,3604.3,2.77444]
[1732888286179,0.08677286,3604.7,3604.4,2.77431]
[1732888286385,0.08677286,3604.6,3604.4,2.77431]
[1732888286588,2.77392,3605.0,3604.4,2.77431]
[1732888286795,0.08677347,3604.9,3604.4,2.77431]
[1732888287104,0.08677347,3604.8,3604.4,2.77431]
[1732888287307,0.08677347,3604.7,3604.4,2.77431]
[1732888287473,0.08677347,3604.7,3604.1,0.9214]
[1732888287474,0.08677347,3604.6,3604.5,2.7743]
[1732888287676,0.08677347,3604.6,3604.3,2.7744]
[1732888287872,2.77392,3605.0,3604.2,2.7745]
[1732888288187,0.08677363,3604.9,3604.5,2.7743]
[1732888288376,0.08677363,3604.9,3604.4,2.77438]
[1732888288570,0.08677363,3604.8,3604.4,2.77438]
[1732888288777,0.08677363,3604.7,3604.4,2.77438]
[1732888289023,0.08677363,3604.6,3604.4,2.77438]
[1732888289308,2.774,3604.9,3604.4,2.77438]
[1732888289505,0.08677363,3604.8,3604.4,2.77438]
[1732888289813,0.08677363,3604.7,3604.4,2.77438]
[1732888289970,0.08677363,3604.6,3604.4,2.77438]
[1732888290167,3.03361028,3605.1,3604.2,2.7745]
[1732888290373,2.77416,3604.7,3604.2,2.7745]
[1732888290578,0.08677485,3604.6,3604.2,2.7745]
[1732888290807,0.08677485,3604.5,3604.2,2.7745]
[1732888291009,0.08677485,3604.4,3604.2,2.7745]
[1732888291311,0.08677704,3604.6,3604.3,2.77445]
[1732888291508,0.08677704,3604.5,3604.1,0.9214]
[1732888291680,2.77424,3604.6,3604.1,6.696]
[1732888291870,0.08677719,3604.5,3604.2,2.77452]
[1732888292074,0.8893,3604.7,3604.2,2.77452]
[1732888292275,2.86107681,3604.6,3604.1,3.0]
[1732888292509,0.08677681,3604.5,3604.1,3.0]
[1732888292710,0.08677681,3604.4,3604.1,3.0]
[1732888292913,0.08677681,3604.3,3604.1,3.0]
[1732888293090,2.7743,3604.6,3604.1,3.0]
[1732888293289,0.9534,3604.2,3603.7,3.55936909]
[1732888293511,0.08678139,3604.1,3603.8,3.0]
[1732888293817,0.08678139,3604.0,3603.8,3.0]
[1732888294119,0.9534,3604.2,3604.0,2.77468]
[1732888294286,0.08678631,3604.1,3604.0,2.77468]
[1732888295106,0.9534,3604.5,3604.0,2.77468]
[1732888295315,2.86117544,3604.4,3603.8,2.77478]
[1732888295611,2.86129544,3604.3,3603.7,3.0]
[1732888295814,0.08678544,3604.2,3603.7,5.77492]
[1732888296011,0.08678665,3604.1,3603.7,5.77492]
[1732888296209,2.77451,3604.3,3603.7,5.77492]
[1732888296210,0.08678665,3604.2,3603.7,5.77492]
[1732888296515,0.08678665,3604.1,3603.7,5.77492]
[1732888296674,3.68875,3604.0,3603.5,0.9543]
[1732888296878,5.89521426,3603.9,3603.3,2.77522]
[1732888297120,0.0867958,3603.8,3603.4,2.7751]
[1732888297675,0.0867958,3603.8,3603.5,0.54627659]
[1732888298307,2.8616558,3603.8,3603.5,0.54627659]
[1732888298514,2.77486,3603.8,3603.5,0.54627659]
[1732888299483,5.80838028,3603.9,3603.5,0.54627659]
[1732888299996,3.03361028,3603.9,3603.5,3.32134659]
[1732888300916,3.03361028,3603.9,3603.5,0.54627659]
[1732888301532,5.80844028,3603.9,3603.5,0.54627659]
[1732888302781,3.03361028,3603.9,3603.5,0.54627659]
[1732888302986,2.77486,3603.8,3603.5,0.54627659]
[1732888303424,0.9032,3603.5,3603.0,5.77544]
[1732888303584,0.9032,3603.5,3603.0,3.0]
[1732888303788,2.7752,3603.4,3603.2,0.54231072]
[1732888304810,3.93681028,3603.5,3603.2,0.54231072]
[1732888305396,6.71195028,3603.5,3603.2,0.54231072]
[1732888306040,0.08681361,3603.4,3603.2,0.54231072]
[1732888306528,0.9622,3603.1,3602.4,2.77587]
[1732888306717,3.03361028,3602.9,3602.3,2.77594]
[1732888307201,3.03361028,3602.9,3602.5,2.77584]
[1732888309229,3.03361028,3602.9,3602.7,2.77569]
[1732888309525,0.8991,3603.4,3602.8,0.9272]
[1732888309699,0.08681249,3603.6,3603.2,2.77525]
[1732888309904,0.9548,3603.8,3603.6,2.77499]
[1732888310088,0.9548,3603.8,3603.6,2.775]
[1732888310292,0.9548,3603.8,3603.5,2.77507]
[1732888310924,0.9548,3603.8,3602.3,0.8702]
[1732888310925,2.77492,3603.7,3602.3,0.8702]
[1732888311303,0.08681253,3603.6,3602.3,0.8702]
[1732888311663,0.08681262,3603.6,3603.2,2.77525]
[1732888311924,0.08681262,3603.6,3602.5,2.77585]
[1732888311925,3.32497,3603.7,3603.0,2.7754]